fUST/lending_fUST_20250812
["ID","MTS","AMOUNT","RATE_DAILY","PERIOD"]
[378695718,1754959852416,-151.0,0.00019623,2]
[378695719,1754959852427,-151.0,0.00019623,2]
[378695720,1754959852437,-151.0,0.00019623,2]
[378695721,1754959852450,-573.1955,0.00019623,2]
[378695722,1754959852460,-573.1955,0.00019623,2]
[378695723,1754959852469,-497.213042,0.00019623,2]
[378695724,1754959852478,-497.213042,0.00019623,2]
[378695725,1754959852487,-366.0,0.0001963,2]
[378695726,1754959852497,-500.0,0.00019673,2]
[378695727,1754959852507,-299.6,0.00019692,2]
[378695728,1754959852516,-1200.0,0.00019712,2]
[378695729,1754959852525,-151.0,0.00019724,2]
[378695730,1754959852534,-151.0,0.00019726,2]
[378695731,1754959852544,-151.0,0.00019726,2]
[378695732,1754959852554,-179.85611511,0.00019736,2]
[378695733,1754959852563,-299.6,0.00019833,2]
[378695734,1754959852572,-683.893844,0.00019863,2]
[378695735,1754959852861,-150.0,0.00019873,2]
[378695736,1754959852886,-500.0,0.00019873,2]
[378695737,1754959852908,-500.0,0.00019873,2]
[378695738,1754959852917,-500.0,0.00019873,2]
[378695739,1754959852927,-500.0,0.00019873,2]
[378695740,1754959852937,-500.0,0.00019873,2]
[378695741,1754959852946,-500.0,0.00019873,2]
[378695742,1754959852956,-500.0,0.00019873,2]
[378695743,1754959852966,-500.0,0.00019873,2]
[378695744,1754959852976,-500.0,0.00019873,2]
[378695745,1754959852985,-500.0,0.00019873,2]
[378695746,1754959852995,-500.78623683,0.00019873,2]
[378695747,1754959853005,-621.55254894,0.00019873,2]
[378695748,1754959853014,-500.0,0.00019873,2]
[378695749,1754959853023,-571.10111159,0.00019873,2]
[378695750,1754959853033,-500.0,0.00019873,2]
[378695751,1754959853042,-500.0,0.00019873,2]
[378695752,1754959853052,-500.0,0.00019873,2]
[378695753,1754959853061,-500.0,0.00019873,2]
[378695754,1754959853070,-385.57904354,0.00019873,2]
[378695755,1754959853080,-500.0,0.00019873,2]
[378695756,1754959853089,-500.0,0.00019873,2]
[378695757,1754959853098,-500.0,0.00019873,2]
[378695758,1754959853108,-460.0,0.0001989,2]
[378695759,1754959853117,-550.83,0.0001989,2]
[378695760,1754959853127,-680.72,0.0001989,2]
[378695761,1754959853136,-2336.91,0.0001989,2]
[378695762,1754959853145,-1398.25,0.0001989,2]
[378695763,1754959853154,-460.0,0.0001989,2]
[378695764,1754959853164,-520.05292457,0.0001989,2]
[378695765,1754959853173,-4331.58,0.0001989,2]
[378695766,1754959853182,-460.0,0.0001989,2]
[378695767,1754959853191,-577.7,0.0001989,2]
[378695768,1754959853202,-658.32,0.00019891,2]
[378695769,1754959853211,-460.0,0.00019891,2]
[378695770,1754959853220,-460.0,0.00019891,2]
[378695771,1754959853229,-460.0,0.00019891,2]
[378695772,1754959853239,-460.0,0.00019891,2]
[378695773,1754959853252,-5545.35,0.00019891,2]
[378695774,1754959853261,-460.0,0.00019891,2]
[378695775,1754959853270,-464.31,0.00019891,2]
[378695776,1754959853279,-460.0,0.00019891,2]
[378695777,1754959853289,-460.0,0.00019891,2]
[378695778,1754959853299,-873.58,0.00019891,2]
[378695779,1754959853307,-753.49,0.00019891,2]
[378695780,1754959853317,-3647.97,0.00019891,2]
[378695781,1754959853327,-460.0,0.00019891,2]
[378695782,1754959853337,-460.0,0.00019891,2]
[378695783,1754959853346,-1305.54,0.00019891,2]
[378695784,1754959853355,-460.0,0.00019891,2]
[378695785,1754959853364,-460.0,0.00019891,2]
[378695786,1754959853374,-460.0,0.00019891,2]
[378695787,1754959853383,-460.0,0.00019891,2]
[378695788,1754959853392,-460.0,0.00019891,2]
[378695789,1754959853401,-1129.44,0.00019891,2]
[378695790,1754959853411,-964.47,0.00019891,2]
[378695791,1754959853420,-3115.19,0.00019891,2]
[378695792,1754959853429,-1380.3,0.00019891,2]
[378695793,1754959853439,-460.0,0.00019891,2]
[378695794,1754959853448,-460.0,0.00019891,2]
[378695795,1754959853458,-460.0,0.00019891,2]
[378695796,1754959853467,-4267.02,0.00019891,2]
[378695797,1754959853477,-460.0,0.00019891,2]
[378695798,1754959853486,-467.18,0.00019891,2]
[378695799,1754959853495,-460.0,0.00019891,2]
[378695800,1754959853504,-460.0,0.00019891,2]
[378695801,1754959853514,-1548.4,0.00019891,2]
[378695802,1754959853523,-1860.02,0.00019891,2]
[378695803,1754959853532,-460.0,0.00019891,2]
[378695804,1754959853541,-2163.34,0.00019891,2]
[378695805,1754959853550,-460.0,0.00019891,2]
[378695806,1754959853560,-460.0,0.00019891,2]
[378695807,1754959853569,-460.0,0.00019891,2]
[378695808,1754959853578,-1112.78,0.00019891,2]
[378695809,1754959853587,-460.0,0.00019891,2]
[378695810,1754959853596,-1156.07,0.00019891,2]
[378695811,1754959853605,-460.0,0.00019891,2]
[378695812,1754959853615,-460.0,0.00019891,2]
[378695813,1754959853624,-500.0,0.00019892,2]
[378695814,1754959853634,-151.0,0.00019892,2]
[378695815,1754959853643,-500.0,0.00019892,2]
[378695816,1754959853653,-500.0,0.00019892,2]
[378695817,1754959853663,-151.0,0.00019892,2]
[378695818,1754959853672,-246.73992829,0.00019892,2]
[378695819,1754959853682,-500.0,0.00019892,2]
[378695820,1754959853691,-500.0,0.00019892,2]
[378695821,1754959853701,-706.29,0.00019892,2]
[378695822,1754959853711,-460.0,0.00019892,2]
[378695823,1754959853720,-460.0,0.00019892,2]
[378695824,1754959853730,-1059.27,0.00019892,2]
[378695825,1754959853739,-753.71,0.00019892,2]
[378695826,1754959853749,-460.0,0.00019892,2]
[378695827,1754959853758,-460.0,0.00019892,2]
[378695828,1754959853768,-460.0,0.00019892,2]
[378695829,1754959853777,-460.0,0.00019892,2]
[378695830,1754959853787,-507.42,0.00019892,2]
[378695831,1754959853796,-489.94,0.00019892,2]
[378695832,1754959853806,-370.63553993,0.00019892,2]
[378695833,1754959854221,-460.0,0.00019068,2]
[378695834,1754959854231,-500.0,0.00019069,2]
[378695835,1754959854244,-462.04680968,0.00019069,2]
[378695836,1754959854254,-324.57,0.00019342,2]
[378695837,1754959854263,-89.36446007,0.00019892,2]
[378695838,1754959854272,-1216.19,0.00019892,2]
[378695839,1754959854282,-1003.25,0.00019892,2]
[378695840,1754959854292,-813.88,0.00019892,2]
[378695841,1754959854301,-701.73,0.00019892,2]
[378695842,1754959854310,-518.43,0.00019892,2]
[378695843,1754959854321,-460.0,0.00019892,2]
[378695844,1754959854330,-460.0,0.00019892,2]
[378695845,1754959854339,-324.04758808,0.00019892,2]
[378695846,1754959854351,-314.18241192,0.00019892,2]
[378695847,1754959854361,-1053.34,0.00019892,2]
[378695848,1754959854370,-493.34062844,0.00019892,2]
[378695849,1754959854379,-460.0,0.00019892,2]
[378695850,1754959854388,-460.0,0.00019892,2]
[378695851,1754959854398,-460.0,0.00019892,2]
[378695852,1754959854407,-118.32169152,0.00019892,2]
[378695853,1754959902640,160.033037,0.00023,30]
[378695854,1754959904513,160.033037,0.00021,20]
[378695855,1754960415561,200.0,0.00018969,10]
[378695856,1754960415953,200.0,0.00018969,10]
[378695857,1754960416264,200.0,0.00018969,10]
[378695858,1754960416576,200.0,0.00018969,10]
[378695859,1754960416969,200.0,0.00018969,10]
[378695860,1754960417527,200.0,0.00018969,10]
[378695861,1754960417833,200.0,0.00018969,10]
[378695862,1754960418126,206.995846,0.00018969,10]
[378695863,1754960502294,160.033037,0.00023,30]
[378695866,1754960566172,367.272999,0.00013699,2]
[378695867,1754960575188,24900.0,0.00017967,2]
[378695980,1754961006255,1459.54636735,0.000189,7]
[378695996,1754961032956,-184.47212313,0.000189,2]
[378695997,1754961032966,-300.0,0.00018957,2]
[378695998,1754961032975,-1200.0,0.00018957,2]
[378695999,1754961032985,-184.13,0.00018957,3]
[378696000,1754961032996,-846.77,0.00018957,3]
[378696001,1754961033006,-151.0,0.00018958,2]
[378696002,1754961033016,-151.0,0.00018958,2]
[378696003,1754961033025,-250.0,0.00018958,2]
[378696004,1754961033035,-250.0,0.00018958,2]
[378696005,1754961033045,-151.0,0.00018958,2]
[378696006,1754961033055,-250.0,0.00018958,2]
[378696007,1754961033064,-151.0,0.00018958,2]
[378696008,1754961033075,-250.0,0.00018958,2]
[378696010,1754961033085,-151.0,0.00018958,2]
[378696011,1754961033095,-250.0,0.00018958,2]
[378696012,1754961033105,-250.0,0.00018958,2]
[378696013,1754961033322,-250.0,0.00018958,2]
[378696014,1754961033332,-151.0,0.00018958,2]
[378696015,1754961033342,-151.0,0.00018958,2]
[378696016,1754961033352,-253.67304322,0.00018958,2]
[378696017,1754961033361,-151.0,0.00018958,2]
[378696018,1754961033370,-151.0,0.00018958,2]
[378696019,1754961033380,-151.0,0.00018958,2]
[378696020,1754961033389,-151.0,0.00018958,2]
[378696021,1754961033399,-151.0,0.00018958,2]
[378696022,1754961033408,-151.0,0.00018958,2]
[378696023,1754961033418,-151.0,0.00018958,2]
[378696024,1754961033427,-151.0,0.00018958,2]
[378696025,1754961033437,-151.0,0.00018958,2]
[378696026,1754961033446,-151.0,0.00018958,2]
[378696027,1754961033455,-151.0,0.00018958,2]
[378696028,1754961033472,-151.0,0.00018958,2]
[378696029,1754961033490,-151.0,0.00018958,2]
[378696030,1754961033507,-1000.0,0.00018958,2]
[378696031,1754961033525,-151.0,0.00018958,2]
[378696032,1754961033534,-1000.0,0.00018958,2]
[378696033,1754961033543,-1000.0,0.00018958,2]
[378696034,1754961033552,-1000.0,0.00018958,2]
[378696035,1754961033562,-1000.0,0.00018958,2]
[378696036,1754961033571,-1000.0,0.00018958,2]
[378696037,1754961033580,-1000.0,0.00018958,2]
[378696038,1754961033589,-500.0,0.00018958,2]
[378696039,1754961033598,-1100.0,0.00018958,2]
[378696040,1754961033611,-500.0,0.00018958,2]
[378696041,1754961033620,-500.0,0.00018958,2]
[378696042,1754961033630,-500.0,0.00018958,2]
[378696043,1754961033639,-474.42,0.00018958,3]
[378696044,1754961033649,-779.33,0.00018958,3]
[378696045,1754961033659,-389.66,0.00018958,3]
[378696046,1754961033668,-194.83,0.00018958,3]
[378696047,1754961033677,-584.53,0.00018958,3]
[378696048,1754961033687,-460.0,0.00018964,2]
[378696049,1754961033699,-460.0,0.00018964,2]
[378696050,1754961033708,-460.0,0.00018964,2]
[378696051,1754961033718,-460.0,0.00018964,2]
[378696052,1754961033727,-460.0,0.00018964,2]
[378696053,1754961033738,-460.02947924,0.00018964,2]
[378696054,1754961033747,-460.0,0.00018964,2]
[378696055,1754961033757,-660.22,0.00018964,2]
[378696056,1754961033766,-460.0,0.00018964,2]
[378696057,1754961033775,-354.19764452,0.00018964,2]
[378696058,1754961033785,-500.0,0.00018964,2]
[378696059,1754961033793,-500.0,0.00018964,2]
[378696060,1754961033804,-633.10116465,0.00018964,2]
[378696061,1754961033813,-287.85818706,0.00018964,2]
[378696062,1754961033822,-196.6,0.00018964,2]
[378696063,1754961033832,-500.0,0.00018964,2]
[378696064,1754961033841,-265.46532016,0.00018964,2]
[378696065,1754961033851,-460.0,0.00018965,2]
[378696066,1754961033861,-460.0,0.00018965,2]
[378696067,1754961033871,-460.0,0.00018965,2]
[378696068,1754961033880,-548.21,0.00018965,2]
[378696069,1754961033889,-476.95,0.00018965,2]
[378696070,1754961033899,-460.0,0.00018965,2]
[378696071,1754961033909,-460.0,0.00018965,2]
[378696072,1754961033919,-2289.39,0.00018965,2]
[378696073,1754961033928,-343.51478512,0.00018965,2]
[378696074,1754961033938,-460.0,0.00018965,2]
[378696075,1754961033948,-460.0,0.00018965,2]
[378696076,1754961033957,-564.29,0.00018965,2]
[378696077,1754961033967,-1384.4,0.00018965,2]
[378696078,1754961033976,-460.0,0.00018965,2]
[378696079,1754961033987,-460.0,0.00018965,2]
[378696080,1754961033998,-460.0,0.00018965,2]
[378696081,1754961034008,-4496.04,0.00018965,2]
[378696082,1754961034017,-500.0,0.00018966,2]
[378696083,1754961034027,-200.90411925,0.00018966,2]
[378696084,1754961034036,-500.0,0.00018966,2]
[378696085,1754961034046,-500.0,0.00018966,2]
[378696086,1754961034055,-500.0,0.00018966,2]
[378696087,1754961034065,-500.0,0.00018966,2]
[378696088,1754961034075,-500.0,0.00018966,2]
[378696089,1754961034085,-500.0,0.00018966,2]
[378696090,1754961034094,-500.0,0.00018966,2]
[378696091,1754961034103,-500.0,0.00018966,2]
[378696092,1754961034113,-500.0,0.00018966,2]
[378696093,1754961034122,-500.0,0.00018966,2]
[378696094,1754961034132,-500.0,0.00018966,2]
[378696095,1754961034142,-500.0,0.00018966,2]
[378696096,1754961034152,-500.0,0.00018966,2]
[378696097,1754961034161,-500.0,0.00018966,2]
[378696098,1754961034170,-500.0,0.00018966,2]
[378696099,1754961034180,-500.0,0.00018966,2]
[378696100,1754961034189,-563.67005334,0.00018966,2]
[378696101,1754961034198,-500.0,0.00018966,2]
[378696102,1754961034208,-460.0,0.00018966,2]
[378696103,1754961034217,-500.0,0.00018966,2]
[378696104,1754961034227,-500.0,0.00018966,2]
[378696105,1754961034237,-880.94,0.00018966,2]
[378696106,1754961034247,-460.0,0.00018966,2]
[378696107,1754961034256,-387.79022982,0.00018966,2]
[378696108,1754961034267,-3611.52,0.00018966,2]
[378696109,1754961034278,-460.0,0.00018966,2]
[378696110,1754961034288,-1382.19,0.00018966,2]
[378696111,1754961034300,-460.0,0.00018966,2]
[378696112,1754961034311,-460.0,0.00018966,2]
[378696113,1754961034320,-1070.11,0.00018966,2]
[378696114,1754961034329,-2800.52,0.00018966,2]
[378696115,1754961034339,-1337.21,0.00018966,2]
[378696116,1754961034349,-460.0,0.00018966,2]
[378696117,1754961034359,-460.69784821,0.00018966,2]
[378696118,1754961034368,-460.0,0.00018966,2]
[378696119,1754961034378,-460.0,0.00018966,2]
[378696120,1754961034387,-460.0,0.00018966,2]
[378696121,1754961034397,-460.0,0.00018966,2]
[378696122,1754961034408,-520.46,0.00018966,2]
[378696123,1754961034418,-1848.44,0.00018966,2]
[378696124,1754961034428,-2122.24,0.00018966,2]
[378696125,1754961034438,-445.28189878,0.00018966,2]
[378696126,1754961034451,-14.71810122,0.00018966,2]
[378696127,1754961034461,-460.0,0.00018966,2]
[378696128,1754961034472,-460.0,0.00018966,2]
[378696129,1754961034482,-460.0,0.00018966,2]
[378696130,1754961034492,-557.97,0.00018966,2]
[378696131,1754961034501,-460.0,0.00018966,2]
[378696132,1754961034511,-460.0,0.00018967,2]
[378696133,1754961034522,-460.0,0.00018967,2]
[378696134,1754961034532,-460.0,0.00018967,2]
[378696135,1754961034541,-460.0,0.00018967,2]
[378696136,1754961034550,-460.0,0.00018967,2]
[378696137,1754961034561,-460.0,0.00018967,2]
[378696138,1754961034571,-461.69525378,0.00018967,2]
[378696139,1754961034580,-460.0,0.00018967,2]
[378696140,1754961034590,-460.0,0.00018967,2]
[378696141,1754961034600,-460.0,0.00018967,2]
[378696142,1754961034615,-195.96108979,0.00018967,2]
[378696143,1754961034625,-460.0,0.00018967,2]
[378696144,1754961034635,-470.77,0.00018967,2]
[378696145,1754961034644,-460.0,0.00018967,2]
[378696146,1754961034654,-1142.02,0.00018967,2]
[378696147,1754961034665,-518.04767297,0.00018967,2]
[378696148,1754961034674,-460.0,0.00018967,2]
[378696149,1754961034683,-933.19,0.00018967,2]
[378696150,1754961034693,-460.0,0.00018967,2]
[378696151,1754961034702,-460.0,0.00018967,2]
[378696152,1754961034712,-508.47,0.00018967,2]
[378696153,1754961034721,-460.0,0.00018967,2]
[378696154,1754961034735,-460.0,0.00018967,2]
[378696155,1754961034744,-644.06,0.00018967,2]
[378696156,1754961034753,-1041.35,0.00018967,2]
[378696157,1754961034763,-460.0,0.00018967,2]
[378696158,1754961034772,-460.0,0.00018967,2]
[378696159,1754961034781,-5662.12,0.00018967,2]
[378696160,1754961034790,-460.0,0.00018967,2]
[378696161,1754961034800,-460.0,0.00018967,2]
[378696162,1754961034809,-460.0,0.00018967,2]
[378696163,1754961034818,-460.0,0.00018967,2]
[378696164,1754961034827,-460.0,0.00018967,2]
[378696165,1754961034836,-460.0,0.00018967,2]
[378696166,1754961034845,-460.0,0.00018967,2]
[378696167,1754961034857,-460.0,0.00018967,2]
[378696168,1754961034866,-286.84872159,0.00018967,2]
[378696169,1754961034875,-460.0,0.00018967,2]
[378696170,1754961034885,-467.83,0.00018967,2]
[378696171,1754961034897,-308.88903883,0.00018967,2]
[378696172,1754961034906,-1017.4,0.00018967,2]
[378696173,1754961034915,-477.37871123,0.00018967,2]
[378696174,1754961034925,-460.0,0.00018967,2]
[378696175,1754961034934,-460.0,0.00018967,2]
[378696176,1754961034944,-460.0,0.00018967,2]
[378696177,1754961034953,-460.0,0.00018967,2]
[378696178,1754961034962,-460.0,0.00018967,2]
[378696179,1754961034971,-460.0,0.00018967,2]
[378696180,1754961034981,-460.0,0.00018967,2]
[378696181,1754961034991,-460.0,0.00018967,2]
[378696182,1754961035000,-476.81930231,0.00018967,2]
[378696183,1754961035010,-460.0,0.00018967,2]
[378696184,1754961035020,-460.0,0.00018967,2]
[378696185,1754961035029,-460.0,0.00018967,2]
[378696186,1754961035040,-460.0,0.00018967,2]
[378696187,1754961035050,-460.0,0.00018967,2]
[378696188,1754961035059,-460.0,0.00018967,2]
[378696189,1754961035068,-495.3,0.00018967,2]
[378696190,1754961035078,-460.0,0.00018967,2]
[378696191,1754961035088,-460.0,0.00018967,2]
[378696192,1754961035097,-460.0,0.00018967,2]
[378696193,1754961035106,-851.43,0.00018967,2]
[378696194,1754961035116,-460.0,0.00018967,2]
[378696195,1754961035126,-460.0,0.00018967,2]
[378696196,1754961035136,-460.0,0.00018967,2]
[378696197,1754961035145,-460.0,0.00018967,2]
[378696198,1754961035155,-460.0,0.00018967,2]
[378696199,1754961035164,-460.0,0.00018967,2]
[378696200,1754961035173,-460.0,0.00018967,2]
[378696201,1754961035182,-460.0,0.00018967,2]
[378696202,1754961035191,-3987.56,0.00018967,2]
[378696203,1754961035200,-460.0,0.00018967,2]
[378696204,1754961035210,-460.0,0.00018967,2]
[378696205,1754961035219,-527.32,0.00018967,2]
[378696206,1754961035228,-980.86,0.00018967,2]
[378696207,1754961035239,-460.0,0.00018967,2]
[378696208,1754961035247,-559.31,0.00018967,2]
[378696209,1754961035256,-460.0,0.00018967,2]
[378696210,1754961035266,-461.52078004,0.00018967,2]
[378696211,1754961035275,-1359.37,0.00018967,2]
[378696212,1754961035285,-460.0,0.00018967,2]
[378696213,1754961035294,-994.72,0.00018967,2]
[378696214,1754961035303,-460.0,0.00018967,2]
[378696215,1754961035312,-460.0,0.00018967,2]
[378696216,1754961035321,-2156.76,0.00018967,2]
[378696217,1754961035330,-927.82,0.00018967,2]
[378696218,1754961035340,-164.042042,0.00018967,2]
[378696219,1754961035349,-460.0,0.00018967,2]
[378696220,1754961035358,-460.0,0.00018967,2]
[378696221,1754961035367,-1211.11,0.00018967,2]
[378696222,1754961035377,-460.0,0.00018967,2]
[378696223,1754961035386,-460.0,0.00018967,2]
[378696224,1754961035395,-460.0,0.00018967,2]
[378696225,1754961035404,-460.0,0.00018967,2]
[378696226,1754961035414,-428.04124918,0.00018967,2]
[378696227,1754961035422,-460.0,0.00018967,2]
[378696228,1754961035432,-460.0,0.00018967,2]
[378696229,1754961035441,-3782.63,0.00018967,2]
[378696230,1754961035450,-910.93,0.00018967,2]
[378696231,1754961035459,-716.34,0.00018967,2]
[378696232,1754961035468,-1054.97,0.00018967,2]
[378696233,1754961035477,-609.68,0.00018967,2]
[378696234,1754961035487,-1009.28,0.00018967,2]
[378696235,1754961035496,-460.0,0.00018967,2]
[378696236,1754961035505,-3050.74,0.00018967,2]
[378696237,1754961035514,-460.0,0.00018967,2]
[378696238,1754961035523,-460.0,0.00018967,2]
[378696239,1754961035533,-460.0,0.00018967,2]
[378696240,1754961035542,-455.66420913,0.00018967,2]
[378696241,1754961035553,-460.0,0.00018967,2]
[378696242,1754961035562,-460.0,0.00018967,2]
[378696243,1754961035571,-460.0,0.00018967,2]
[378696244,1754961035581,-460.0,0.00018967,2]
[378696245,1754961035591,-1533.17,0.00018967,2]
[378696246,1754961035600,-2964.63,0.00018967,2]
[378696247,1754961035614,-460.0,0.00018967,2]
[378696248,1754961035623,-460.0,0.00018967,2]
[378696249,1754961035631,-460.0,0.00018967,2]
[378696250,1754961035641,-460.0,0.00018967,2]
[378696251,1754961035650,-847.73,0.00018967,2]
[378696252,1754961035659,-460.0,0.00018967,2]
[378696253,1754961035668,-466.69,0.00018967,2]
[378696254,1754961035677,-322.44860229,0.00018967,2]
[378696255,1754961035687,-1291.63,0.00018967,2]
[378696256,1754961035696,-500.0,0.00018968,2]
[378696257,1754961035704,-580.56,0.00018968,2]
[378696258,1754961035714,-460.0,0.00018968,2]
[378696259,1754961035723,-460.0,0.00018968,2]
[378696260,1754961035732,-460.0,0.00018968,2]
[378696261,1754961035742,-460.0,0.00018968,2]
[378696262,1754961035751,-460.0,0.00018968,2]
[378696263,1754961035760,-460.0,0.00018968,2]
[378696264,1754961035769,-460.0,0.00018968,2]
[378696265,1754961035779,-460.0,0.00018968,2]
[378696266,1754961035788,-460.0,0.00018968,2]
[378696267,1754961035797,-460.0,0.00018968,2]
[378696268,1754961035806,-460.0,0.00018968,2]
[378696269,1754961035815,-460.0,0.00018968,2]
[378696270,1754961035825,-460.0,0.00018968,2]
[378696271,1754961035843,-460.0,0.00018968,2]
[378696272,1754961035852,-460.0,0.00018968,2]
[378696273,1754961035861,-460.0,0.00018968,2]
[378696274,1754961035870,-460.0,0.00018968,2]
[378696275,1754961035880,-460.0,0.00018968,2]
[378696276,1754961035891,-460.0,0.00018968,2]
[378696277,1754961035900,-460.0,0.00018968,2]
[378696278,1754961035910,-460.0,0.00018968,2]
[378696279,1754961035921,-460.0,0.00018968,2]
[378696280,1754961035931,-460.0,0.00018968,2]
[378696281,1754961035940,-1019.8,0.00018968,2]
[378696282,1754961035949,-460.0,0.00018968,2]
[378696283,1754961035958,-305.8984454,0.00018968,2]
[378696284,1754961035968,-460.0,0.00018968,2]
[378696285,1754961035977,-718.56,0.00018968,2]
[378696286,1754961035987,-460.0,0.00018968,2]
[378696287,1754961035996,-464.89380412,0.00018968,2]
[378696288,1754961036006,-460.0,0.00018968,2]
[378696289,1754961036015,-460.0,0.00018968,2]
[378696290,1754961036024,-657.97,0.00018968,2]
[378696291,1754961036034,-460.0,0.00018968,2]
[378696292,1754961036043,-460.0,0.00018968,2]
[378696293,1754961036052,-460.0,0.00018968,2]
[378696294,1754961036061,-460.0,0.00018968,2]
[378696295,1754961036070,-460.0,0.00018968,2]
[378696296,1754961036079,-594.98208201,0.00018968,2]
[378696297,1754961036088,-460.0,0.00018968,2]
[378696298,1754961036098,-460.0,0.00018968,2]
[378696299,1754961036107,-460.0,0.00018968,2]
[378696300,1754961036116,-460.0,0.00018968,2]
[378696301,1754961036126,-460.0,0.00018968,2]
[378696302,1754961036135,-460.0,0.00018968,2]
[378696303,1754961036144,-460.0,0.00018968,2]
[378696304,1754961036153,-460.0,0.00018968,2]
[378696305,1754961036162,-460.0,0.00018968,2]
[378696306,1754961036171,-361.08311554,0.00018968,2]
[378696307,1754961036180,-460.0,0.00018968,2]
[378696308,1754961036189,-310.06418619,0.00018968,2]
[378696309,1754961036198,-460.0,0.00018968,2]
[378696310,1754961036207,-460.0,0.00018968,2]
[378696311,1754961036216,-462.64367269,0.00018968,2]
[378696312,1754961036225,-460.0,0.00018968,2]
[378696313,1754961036234,-460.0,0.00018968,2]
[378696314,1754961036245,-460.0,0.00018968,2]
[378696315,1754961036254,-460.0,0.00018968,2]
[378696316,1754961036264,-460.0,0.00018968,2]
[378696317,1754961036273,-460.0,0.00018968,2]
[378696318,1754961036283,-460.0,0.00018968,2]
[378696319,1754961036292,-460.0,0.00018968,2]
[378696320,1754961036301,-460.0,0.00018968,2]
[378696321,1754961036311,-805.43,0.00018968,2]
[378696322,1754961036320,-460.0,0.00018968,2]
[378696323,1754961036330,-460.0,0.00018968,2]
[378696324,1754961036339,-460.0,0.00018968,2]
[378696325,1754961036348,-460.0,0.00018968,2]
[378696326,1754961036357,-460.0,0.00018968,2]
[378696327,1754961036366,-461.60850003,0.00018968,2]
[378696328,1754961036375,-460.0,0.00018968,2]
[378696329,1754961036384,-460.0,0.00018968,2]
[378696330,1754961036394,-460.0,0.00018968,2]
[378696331,1754961036403,-460.0,0.00018968,2]
[378696332,1754961036414,-460.0,0.00018968,2]
[378696333,1754961036423,-460.0,0.00018968,2]
[378696334,1754961036433,-653.37,0.00018968,2]
[378696335,1754961036442,-460.0,0.00018968,2]
[378696336,1754961036451,-460.0,0.00018968,2]
[378696337,1754961036460,-460.0,0.00018968,2]
[378696338,1754961036470,-460.0,0.00018968,2]
[378696339,1754961036478,-460.0,0.00018968,2]
[378696340,1754961036488,-460.0,0.00018968,2]
[378696341,1754961036497,-254.13835059,0.00018968,2]
[378696342,1754961036517,-205.86164941,0.00018968,2]
[378696343,1754961036526,-460.0,0.00018968,2]
[378696344,1754961036535,-460.0,0.00018968,2]
[378696345,1754961036544,-137.71281477,0.00018968,2]
[378696346,1754961036574,-322.28718523,0.00018968,2]
[378696347,1754961036584,-126.80887673,0.00018968,2]